bitfinex-derivatives/quotes_SOLF0:USTF0_20250514
["timestamp","ask_amount","ask_price","bid_price","bid_amount"]
[1747191955881,61.28,180.21,180.16,67.4306]
[1747191956079,5.5499,180.19,180.16,67.4306]
[1747191957276,5.5499,180.19,180.16,61.88]
[1747191957479,5.5505,180.18,180.16,61.88]
[1747191957783,61.28,180.21,180.16,61.88]
[1747191958082,61.28,180.21,180.16,67.4308]
[1747191958483,61.28,180.21,180.16,61.88]
[1747191958674,61.28,180.21,180.18,5.5502]
[1747191959184,66.8295,180.21,180.18,5.5502]
[1747191959384,66.8295,180.21,180.17,5.5504]
[1747191959586,66.8295,180.21,180.16,61.88]
[1747191960286,5.5497,180.2,180.16,61.88]
[1747191960784,5.5502,180.19,180.16,61.88]
[1747191961283,61.28,180.21,180.16,61.88]
[1747191961481,61.28,180.21,180.14,9.1584]
[1747191961788,61.28,180.21,180.14,3.607]
[1747191961988,5.55,180.19,180.15,5.5509]
[1747191962288,61.28,180.21,180.14,3.607]
[1747191962479,5.5504,180.18,180.14,3.607]
[1747191962678,61.28,180.21,180.14,3.607]
[1747191962887,123.18,180.21,180.12,61.9]
[1747191963782,0.99719865,180.2,180.12,61.9]
[1747191963981,0.99719865,180.2,180.09,479.46]
[1747191964289,123.18,180.21,180.09,61.92]
[1747191964486,0.99717073,180.2,180.09,61.92]
[1747191965385,5.5511,180.16,180.11,5.5523]
[1747191965592,62.6,180.15,180.11,5.5523]
[1747191966193,62.6,180.15,180.09,67.4728]
[1747191966992,5.5519,180.13,180.09,61.92]
[1747191967187,62.6,180.15,180.09,61.92]
[1747191967587,62.6,180.15,180.03,5.2788]
[1747191967787,0.99690889,180.14,180.03,5.2788]
[1747191968096,0.99690889,180.14,179.99,63.78]
[1747191968387,0.99690889,180.14,180.01,5.4351]
[1747191968591,6.46915675,180.25,180.05,5.5541]
[1747191968592,71.7121,180.13,180.05,5.5541]
[1747191968789,66.16,180.12,180.06,63.78]
[1747191968990,66.22,180.12,180.06,63.78]
[1747191970493,66.22,180.12,180.08,5.5533]
[1747191971194,66.22,180.12,180.1,5.5526]
[1747191971397,66.22,180.12,180.06,63.78]
[1747191971899,66.22,180.12,180.09,5.5527]
[1747191972095,66.22,180.12,179.92,62.0]
[1747191972396,66.22,180.12,179.93,135.4667]
[1747191972585,66.22,180.12,179.93,69.1667]
[1747191972789,66.22,180.12,179.94,66.32]
[1747191973095,5.5527,180.11,180.04,5.5545]
[1747191973293,5.5527,180.11,180.05,63.8]
[1747191973694,71.7722,180.12,180.05,63.8]
[1747191974701,71.7722,180.12,180.07,5.5536]
[1747191975091,66.22,180.12,180.05,63.8]
[1747191975598,71.7723,180.12,180.07,5.5536]
[1747191976899,5.5524,180.11,180.07,5.5536]
[1747191977100,66.22,180.12,180.07,5.5536]
[1747191977600,71.7724,180.12,180.07,5.5536]
[1747191977802,66.22,180.12,180.06,5.5539]
[1747191977988,130.04,180.12,179.97,63.82]
[1747191978192,0.99647453,180.11,179.97,63.82]
[1747191978791,5.5542,180.06,179.97,63.82]
[1747191978997,66.02,180.05,179.97,63.82]
[1747191979799,66.02,180.05,180.0,5.5556]
[1747191980000,66.02,180.05,179.97,63.82]
[1747191980303,71.5745,180.05,180.01,5.5554]
[1747191980800,5.5546,180.04,180.01,5.5554]
[1747191981300,5.5548,180.04,179.97,63.82]
[1747191982000,66.02,180.05,179.97,63.82]
[1747191982202,66.02,180.05,179.97,69.3767]
[1747191982795,66.02,180.05,179.98,5.5564]
[1747191982998,0.9670293,180.09,179.97,63.82]
[1747191983197,491.0218,180.16,179.97,63.82]
[1747191983396,494.1,180.15,179.97,63.82]
[1747191983595,0.99591511,180.08,179.97,63.82]
[1747191983791,66.42,180.07,180.05,5.5542]
[1747191984301,71.9737,180.07,179.97,63.82]
[1747191984503,66.42,180.07,179.97,63.82]
[1747191984901,71.9739,180.07,180.03,5.5548]
[1747191985102,66.42,180.07,179.97,63.82]
[1747191985803,66.42,180.07,179.93,5.3667]
[1747191986004,5.5547,180.04,179.94,66.42]
[1747191986803,5.5549,180.03,179.98,5.5561]
[1747191987199,66.26,180.02,179.96,5.5568]
[1747191987402,5.5558,180.0,179.93,5.3667]
[1747191987704,66.26,180.01,179.9,66.42]
[1747191987903,5.5571,179.96,179.9,66.42]
[1747191988112,66.26,179.95,179.9,66.42]
[1747191988402,71.8177,179.94,179.9,66.42]
[1747191988706,66.22,179.94,179.9,66.42]
[1747191989702,5.5729,180.03,179.9,66.42]
[1747191990007,497.55574567,180.02,179.9,66.42]
[1747191990205,133.53574567,180.01,179.9,66.42]
[1747191990405,132.54,180.01,179.9,66.42]
[1747191990601,66.06,180.0,179.9,66.42]
[1747191991206,5.5565,179.98,179.94,5.5576]
[1747191991504,66.06,180.0,179.9,66.42]
[1747191991704,5.557,179.97,179.92,5.5582]
[1747191992706,5.557,179.97,179.93,5.5579]
[1747191993308,5.557,179.96,179.92,5.5582]
[1747191994210,65.76,179.95,179.9,66.42]
[1747191994802,5.5579,179.94,179.9,66.42]
[1747191995104,65.76,179.95,179.9,66.42]
[1747191995408,5.5577,179.94,179.9,71.9786]
[1747191995705,364.0,180.02,179.9,66.42]
[1747191996006,430.44,180.02,179.9,66.42]
[1747191996206,65.68,180.01,179.9,66.42]
[1747191997210,71.2356,180.01,179.9,66.42]
[1747191997406,65.68,180.01,179.9,66.42]
[1747191997608,65.68,180.01,179.88,5.6184]
[1747191997808,65.66,180.0,179.94,5.5575]
[1747191998009,65.66,180.0,179.88,72.0584]
[1747191998308,5.5563,179.99,179.95,5.5573]
[1747191998604,65.84,179.99,179.93,66.44]
[1747191999710,71.3962,179.99,179.94,5.5575]
[1747192000110,71.3962,179.99,179.93,66.44]
[1747192000111,5.5568,179.97,179.93,71.9979]
[1747192000311,5.5568,179.97,179.93,66.44]
[1747192000508,65.84,179.99,179.93,66.44]
[1747192001606,132.28,179.99,179.88,72.0584]
[1747192001807,132.28,179.99,179.88,70.2117]
[1747192002013,5.5577,179.94,179.9,5.5586]
[1747192002214,65.82,179.94,179.88,70.2117]
[1747192004116,65.82,179.94,179.91,5.5583]
[1747192004414,65.82,179.94,179.88,70.2117]
[1747192004808,65.64,179.95,179.88,70.2117]
[1747192005615,65.64,179.95,179.88,66.44]
[1747192006315,5.5592,179.89,179.88,66.44]
[1747192007220,5.5596,179.88,179.84,73.8498]
[1747192007411,5.5596,179.88,179.84,68.2893]
[1747192008013,5.5596,179.88,179.84,73.85]
[1747192008215,65.48,179.9,179.84,66.46]
[1747192009619,5.5599,179.87,179.84,66.46]
[1747192010224,131.94,179.9,179.78,5.4163]
[1747192010420,131.94,179.9,179.78,71.8763]
[1747192010813,5.5603,179.86,179.82,5.5613]
[1747192011119,65.32,179.87,179.78,71.8763]
[1747192011519,65.32,179.87,179.85,5.5603]
[1747192011921,65.32,179.87,179.78,71.8763]
[1747192012321,65.32,179.87,179.84,5.5605]
[1747192012509,65.34,179.87,179.84,5.5605]
[1747192012709,65.34,179.87,179.78,71.8763]
[1747192012920,5.5595,179.88,179.84,5.5604]
[1747192013119,70.8395,179.88,179.84,5.5604]
[1747192013713,5.5598,179.87,179.84,5.5604]
[1747192013914,65.28,179.88,179.84,5.5604]
[1747192014518,65.28,179.88,179.78,71.8763]
[1747192014714,5.561,179.84,179.78,71.8763]
[1747192015019,3.50933925,179.81,179.65,3.50933925]
[1747192015321,844.52,179.9,179.68,3.50933925]
[1747192015322,65.18,179.8,179.68,3.50933925]
[1747192015516,65.16,179.79,179.68,3.50933925]
[1747192015714,65.16,179.79,179.69,65.26]
[1747192016321,65.16,179.79,179.75,5.5633]
[1747192016521,65.16,179.79,179.74,65.26]
[1747192016823,65.16,179.79,179.76,5.563]
[1747192017014,65.16,179.79,179.74,65.26]
[1747192017216,0.96829394,179.89,179.74,65.26]
[1747192017522,3.50933925,179.88,179.8,5.5617]
[1747192017720,5.5605,179.85,179.75,5.4803]
[1747192017919,65.14,179.87,179.75,5.4803]
[1747192018223,65.14,179.87,179.8,5.5618]
[1747192018624,5.5615,179.82,179.78,5.5625]
[1747192018824,70.6415,179.82,179.78,5.5625]
[1747192019922,65.08,179.82,179.79,5.5623]
[1747192020417,70.6416,179.82,179.77,5.5627]
[1747192020624,65.08,179.82,179.75,5.4803]
[1747192020826,65.08,179.82,179.74,65.26]
[1747192021019,480.52,179.9,179.53,17.28894788]
[1747192021020,7.03376298,179.75,179.53,17.28894788]
[1747192021214,7.03376298,179.75,179.39,96.07328496]
[1747192021215,3.51688149,179.58,179.47,161.64069906]
[1747192021421,5.5699,179.55,179.47,167.21289906]
[1747192021620,3.51688149,179.56,179.47,161.64069906]
[1747192021818,67.12,179.55,179.47,161.64069906]
[1747192022019,3.51688149,179.57,179.47,161.64069906]
[1747192022227,67.18,179.56,179.47,161.64069906]
[1747192022624,480.64,179.61,179.47,161.64069906]
[1747192022827,3.51688149,179.57,179.47,161.64069906]
[1747192023029,67.36,179.56,179.47,161.64069906]
[1747192023532,67.36,179.56,179.49,5.5715]
[1747192024224,67.32,179.57,179.47,161.64069906]
[1747192024728,67.32,179.57,179.54,5.57]
[1747192025026,67.32,179.57,179.5,65.32]
[1747192025228,67.24,179.58,179.54,5.5699]
[1747192025429,67.24,179.58,179.51,3.7316]
[1747192025822,67.24,179.58,179.54,5.5697]
[1747192026028,67.24,179.58,179.51,3.7316]
[1747192026628,72.87040278,179.58,179.46,1.736]
[1747192027328,72.87040278,179.58,179.5,5.5713]
[1747192028028,5.5692,179.57,179.51,5.5709]
[1747192028331,480.64,179.61,179.46,1.736]
[1747192028526,132.36,179.6,179.46,1.736]
[1747192028832,137.99040278,179.6,179.46,1.736]
[1747192029018,5.5685,179.59,179.54,5.5699]
[1747192029224,132.56,179.58,179.46,1.736]
[1747192029428,5.63040278,179.56,179.46,1.736]
[1747192029620,133.0,179.55,179.38,1.8574]
[1747192029930,5.63040278,179.52,179.38,1.8574]
[1747192030731,5.5713,179.5,179.44,5.5728]
[1747192031030,132.94,179.49,179.38,1.8574]
[1747192031225,5.63040278,179.56,179.38,1.8574]
[1747192031425,132.92,179.55,179.38,1.8574]
[1747192031830,5.5706,179.53,179.38,1.8574]
[1747192032032,132.92,179.55,179.38,1.8574]
[1747192032429,132.92,179.55,179.47,5.5719]
[1747192032828,132.92,179.55,179.41,65.36]
[1747192033027,5.63040278,179.56,179.41,65.36]
[1747192033028,132.76,179.54,179.41,65.36]
[1747192033234,67.42,179.53,179.41,65.36]
[1747192033433,67.42,179.53,179.52,5.5706]
[1747192033732,67.38,179.53,179.41,65.36]
[1747192033920,67.38,179.53,179.5,5.5712]
[1747192034337,364.0,179.59,179.41,65.36]
[1747192034630,132.66,179.58,179.41,65.36]
[1747192035028,138.2288,179.58,179.52,5.5704]
[1747192035734,5.5691,179.57,179.52,5.5704]
[1747192036033,132.66,179.58,179.53,5.5703]
[1747192036230,132.66,179.58,179.47,1.7417]
[1747192036429,5.5691,179.57,179.47,1.7417]
[1747192036926,138.2288,179.58,179.47,1.7417]
[1747192037131,138.2288,179.58,179.47,3.5137]
[1747192037434,132.66,179.58,179.47,3.5137]
[1747192037634,132.66,179.58,179.48,1.887]
[1747192037635,66.98,179.57,179.48,1.887]
[1747192037930,480.64,179.61,179.48,1.887]
[1747192038122,66.96,179.6,179.49,66.96]
[1747192038328,5.63040278,179.67,179.49,66.96]
[1747192038527,65.38,179.64,179.49,66.96]
[1747192038727,364.0,179.68,179.62,5.5673]
[1747192038928,132.3,179.67,179.56,65.38]
[1747192039135,66.92,179.66,179.57,69.0383]
[1747192039331,66.92,179.66,179.58,1.887]
[1747192039731,0.96903542,179.75,179.58,1.887]
[1747192039925,66.84,179.69,179.58,1.887]
[1747192041137,66.84,179.69,179.65,5.5666]
[1747192041334,66.84,179.69,179.58,1.887]
[1747192041841,66.84,179.69,179.65,5.5664]
[1747192042131,481.42,179.7,179.58,1.887]
[1747192042338,66.64,179.69,179.58,1.887]
[1747192042535,66.64,179.69,179.59,66.62]
[1747192042831,66.64,179.69,179.68,5.5657]
[1747192043926,66.64,179.69,179.67,5.566]
[1747192044134,66.64,179.69,179.63,65.38]
[1747192044431,66.64,179.69,179.42,11.1475]
[1747192044639,5.63106227,179.67,179.47,1.7365]
[1747192044838,5.63106227,179.67,179.48,1.8081]
[1747192045135,5.63106227,179.67,179.54,5.5699]
[1747192045136,5.5676,179.62,179.54,5.5699]
[1747192045340,73.6876,179.62,179.55,66.44]
[1747192045736,68.12,179.62,179.55,66.44]
[1747192045933,68.12,179.62,179.55,72.0094]
[1747192046134,68.12,179.62,179.55,66.44]
[1747192046329,5.63106227,179.63,179.48,68.2481]
[1747192046535,5.63106227,179.59,179.48,68.2481]
[1747192046735,66.44,179.58,179.48,66.44]
[1747192046930,5.5711,179.51,179.48,66.44]
[1747192047534,68.24,179.52,179.48,66.44]
[1747192048342,5.5712,179.51,179.48,66.44]
[1747192049745,68.24,179.52,179.48,66.44]
[1747192050441,68.24,179.52,179.49,5.5713]
[1747192050635,68.24,179.52,179.48,66.44]
[1747192051441,67.86,179.57,179.48,66.44]
[1747192051838,67.86,179.57,179.53,5.5701]
[1747192052140,67.86,179.57,179.48,66.44]
[1747192052341,67.86,179.57,179.52,5.5703]
[1747192052538,430.46,179.56,179.41,66.46]
[1747192052840,5.5703,179.53,179.45,5.5232]
[1747192053442,5.5703,179.53,179.46,66.46]
[1747192053838,5.5707,179.52,179.48,5.5717]
[1747192054040,5.5707,179.52,179.46,66.46]
[1747192054243,66.46,179.56,179.47,5.5719]
[1747192054637,5.5704,179.53,179.47,5.5719]
[1747192054834,5.5704,179.53,179.46,66.46]
[1747192054835,5.63420144,179.6,179.46,66.46]
[1747192055033,134.8,179.59,179.46,66.46]
[1747192055339,134.8,179.59,179.47,5.5722]
[1747192055542,5.63420144,179.56,179.46,66.46]
[1747192055943,5.5722,179.47,179.46,66.46]
[1747192056144,68.24,179.49,179.45,1.9064]
[1747192057045,68.24,179.49,179.42,66.46]
[1747192058439,5.5716,179.48,179.44,5.5723]
[1747192058646,68.24,179.49,179.42,66.46]
[1747192059043,5.5719,179.47,179.43,5.5728]
[1747192059944,5.5719,179.47,179.44,5.5725]
[1747192060544,5.5719,179.47,179.43,5.5728]
[1747192061743,5.572,179.46,179.42,72.0331]
[1747192062346,5.5714,179.48,179.43,5.5728]
[1747192062545,68.24,179.49,179.43,5.5728]
[1747192063349,5.5719,179.47,179.43,5.5728]
[1747192063946,68.24,179.49,179.42,66.46]
[1747192064142,67.5,179.51,179.42,66.46]
[1747192064543,67.5,179.51,179.44,5.5725]
[1747192064847,67.5,179.51,179.42,66.46]
[1747192065051,5.571,179.49,179.45,5.572]
[1747192065241,67.5,179.51,179.42,66.46]
[1747192065547,67.42,179.53,179.42,66.46]
[1747192066543,67.32,179.55,179.42,66.46]
[1747192066947,67.32,179.55,179.51,5.5701]
[1747192067342,72.8892,179.55,179.51,5.5701]
[1747192069156,67.32,179.55,179.52,5.57]
[1747192069449,67.32,179.55,179.5,66.48]
[1747192069950,72.8892,179.55,179.51,5.5702]
[1747192070250,67.32,179.55,179.51,5.5702]
[1747192070852,67.32,179.55,179.5,72.0506]
[1747192071041,67.32,179.55,179.5,66.48]
[1747192071246,72.8892,179.55,179.5,66.48]
[1747192071546,72.8892,179.55,179.51,5.5704]
[1747192071851,5.5695,179.54,179.51,5.5704]
[1747192072352,72.8892,179.55,179.51,5.5704]
[1747192073351,72.8892,179.55,179.52,5.5701]
[1747192073653,67.32,179.55,179.52,5.5701]
[1747192073945,72.8892,179.55,179.51,5.5702]
[1747192074152,72.8892,179.55,179.5,66.48]
[1747192074357,66.48,179.59,179.5,66.48]
[1747192074652,72.0484,179.58,179.54,5.5694]
[1747192075454,66.48,179.58,179.5,66.48]
[1747192076153,369.63463646,179.61,179.5,66.48]
[1747192076154,364.0,179.61,179.5,66.48]
[1747192076354,66.3,179.6,179.5,66.48]
[1747192076551,66.26,179.61,179.5,66.48]
[1747192076953,5.5676,179.6,179.56,5.5686]
[1747192077252,5.5676,179.6,179.5,66.48]
[1747192078054,5.5676,179.6,179.56,5.5687]
[1747192078451,71.8274,179.61,179.56,5.5687]
[1747192078651,66.46,179.63,179.57,5.5685]
[1747192078847,5.63463646,179.65,179.51,66.04]
[1747192079053,5.5669,179.63,179.58,5.5681]
[1747192079254,66.02,179.64,179.57,66.46]
[1747192079655,5.5672,179.62,179.57,72.0283]
[1747192080154,5.5672,179.62,179.57,66.46]
[1747192080754,66.02,179.64,179.57,66.46]
[1747192080948,364.0,179.7,179.57,66.46]
[1747192081155,5.5657,179.67,179.63,5.5666]
[1747192081551,364.0,179.7,179.62,66.46]
[1747192081552,364.0,179.7,179.66,5.5656]
[1747192081745,296.60547831,179.72,179.62,66.46]
[1747192082052,65.86,179.74,179.62,66.46]
[1747192082252,65.86,179.74,179.63,1.8338]
[1747192082555,65.88,179.76,179.63,1.8338]
[1747192082749,65.88,179.76,179.71,5.5639]
[1747192082957,65.88,179.76,179.72,66.46]
[1747192083358,5.5638,179.73,179.68,66.44]
[1747192083554,65.88,179.76,179.63,1.8338]
[1747192083759,65.88,179.76,179.64,132.44]
[1747192083955,65.88,179.76,179.58,3.7734]
[1747192084150,5.63463646,179.74,179.59,1.8338]
[1747192084358,5.5666,179.64,179.59,66.44]
[1747192084754,5.5666,179.64,179.58,3.7734]
[1747192085058,5.5666,179.64,179.6,66.44]
[1747192085358,71.586,179.66,179.6,66.44]
[1747192086158,66.02,179.66,179.6,66.44]
[1747192086457,364.0,179.75,179.6,66.44]
[1747192086658,5.5647,179.7,179.6,66.44]
[1747192086859,5.5647,179.7,179.6,132.36]
[1747192087054,5.5647,179.7,179.65,5.566]
[1747192087251,65.92,179.74,179.65,5.566]
[1747192087252,5.5649,179.69,179.65,5.566]
[1747192087452,65.92,179.74,179.6,132.36]
[1747192087758,5.5646,179.7,179.6,132.36]
[1747192087954,65.92,179.74,179.6,132.36]
[1747192088155,430.44,179.75,179.68,5.5651]
[1747192088364,364.0,179.75,179.67,66.44]
[1747192088561,65.8,179.76,179.68,68.3494]
[1747192089063,65.8,179.76,179.69,1.7992]
[1747192089457,364.0,179.82,179.69,1.7992]
[1747192089765,65.72,179.81,179.74,5.563]
[1747192090157,5.5618,179.79,179.74,5.563]
[1747192090360,65.72,179.81,179.73,66.42]
[1747192091461,65.56,179.83,179.73,66.42]
[1747192091662,131.94,179.84,179.73,66.42]
[1747192091860,131.94,179.84,179.78,5.5619]
[1747192092264,131.94,179.84,179.74,1.79]
[1747192092463,65.52,179.84,179.75,66.4]
[1747192092663,65.52,179.84,179.76,65.48]
[1747192093166,71.0802,179.84,179.79,5.5616]
[1747192094367,5.5602,179.84,179.79,5.5616]
[1747192094568,5.5606,179.83,179.79,5.5616]
[1747192095167,65.3,179.86,179.75,66.4]
[1747192095969,5.5616,179.8,179.75,66.4]
[1747192096465,5.5609,179.82,179.77,5.562]
[1747192096767,65.3,179.86,179.77,5.562]
[1747192097468,5.5613,179.81,179.76,5.5626]
[1747192097770,65.3,179.86,179.76,5.5626]
[1747192098068,5.562,179.79,179.75,66.4]
[1747192098272,65.3,179.86,179.75,66.4]
[1747192099369,5.5618,179.79,179.75,66.4]
[1747192100062,64.9,179.81,179.76,5.5626]
[1747192100768,64.9,179.81,179.77,5.5623]
[1747192100973,430.4,179.89,179.75,66.4]
[1747192101268,5.5604,179.84,179.75,66.4]
[1747192102271,5.5605,179.83,179.75,66.4]
[1747192102571,430.4,179.89,179.76,5.63463646]
[1747192102772,5.5595,179.87,179.77,66.4399]
[1747192102975,64.72,179.88,179.77,66.4399]
[1747192103173,5.5595,179.87,179.82,5.5605]
[1747192103875,5.5593,179.87,179.82,5.5605]
[1747192104176,364.0,179.89,179.81,71.941]
[1747192105075,364.0,179.89,179.82,5.5608]
[1747192105481,5.5595,179.87,179.82,5.5608]
[1747192105679,364.0,179.89,179.82,5.5608]
[1747192105973,5.5595,179.87,179.82,5.5608]
[1747192106177,364.0,179.89,179.82,5.5608]
[1747192106478,5.5593,179.87,179.82,5.5608]
[1747192106678,364.0,179.89,179.82,5.5608]
[1747192107078,5.5595,179.87,179.82,5.5608]
[1747192107279,547.56,179.93,179.81,66.38]
[1747192107476,364.0,179.96,179.81,66.38]
[1747192107674,5.5572,179.94,179.83,5.63463646]
[1747192108075,428.3,179.96,179.83,5.63463646]
[1747192108282,64.3,179.96,179.92,5.5576]
[1747192108482,364.0,180.02,179.9,64.54]
[1747192108784,64.38,180.01,179.9,64.54]
[1747192108983,5.556,179.98,179.94,5.5569]
[1747192109482,64.38,180.01,179.94,5.5569]
[1747192109682,5.5558,179.99,179.94,5.5569]
[1747192110078,364.0,180.02,179.94,5.5569]
[1747192110284,64.26,180.04,179.95,64.54]
[1747192110483,64.26,180.03,179.95,64.54]
[1747192110780,64.26,180.04,179.95,64.54]
[1747192111277,64.26,180.04,180.01,5.5549]
[1747192111580,64.24,180.08,180.01,64.52]
[1747192111982,230.26950109,180.1,180.01,64.52]
[1747192112186,428.52,180.17,180.02,64.22]
[1747192112482,64.22,180.16,180.02,64.22]
[1747192112670,5.5513,180.13,180.07,5.5528]
[1747192112877,5.5513,180.13,180.07,64.52]
[1747192113282,64.18,180.14,180.07,64.52]
[1747192113984,5.5516,180.12,180.07,70.073]
[1747192114284,64.18,180.14,180.07,70.073]
[1747192114587,5.5518,180.11,180.07,64.52]
[1747192114981,64.18,180.14,179.98,3.5936]
[1747192115186,69.81463646,180.14,179.99,64.5]
[1747192115687,5.5536,180.06,179.99,64.5]
[1747192115882,64.22,180.08,179.99,64.5]
[1747192116088,64.2,180.09,179.99,64.5]
[1747192116288,5.5541,180.04,179.99,70.0552]
[1747192116892,64.22,180.07,179.99,70.0552]
[1747192116893,5.555,180.01,179.99,64.5]
[1747192117086,64.22,180.07,179.99,64.5]
[1747192117692,5.5545,180.03,179.99,64.5]
[1747192117993,64.22,180.07,179.99,64.5]
[1747192118380,5.5546,180.02,179.99,64.5]
[1747192118786,5.555,180.01,179.99,64.5]
[1747192118985,64.22,180.07,179.96,545.1]
[1747192119989,5.5546,180.02,179.98,5.5557]
[1747192120190,64.22,180.07,179.98,5.5557]
[1747192120492,5.5549,180.02,179.97,5.5561]
[1747192120891,64.22,180.07,179.96,545.1]
[1747192121092,5.5556,179.99,179.96,545.1]
[1747192121290,64.22,180.07,179.96,545.1]
[1747192121592,5.5557,179.99,179.96,545.1]
[1747192121793,63.84,180.02,179.96,545.1]
[1747192122895,5.5556,179.99,179.96,545.1]
[1747192123291,63.84,180.02,179.96,545.1]
[1747192123994,5.5539,180.05,179.96,545.1]
[1747192124190,63.74,180.07,179.96,545.1]
[1747192124390,63.74,180.07,179.99,5.5553]
[1747192124590,5.5542,180.04,179.99,5.5553]
[1747192124795,5.5542,180.04,179.96,545.1]
[1747192125095,63.74,180.07,179.99,5.5554]
[1747192125295,5.5546,180.02,179.96,545.1]
[1747192125484,5.5546,180.02,179.98,5.5556]
[1747192125689,63.74,180.07,179.96,545.1]
[1747192127495,5.5541,180.04,179.96,545.1]
[1747192128197,5.5532,180.07,179.96,545.1]
[1747192128397,63.5,180.07,179.97,63.46]
[1747192128997,5.5536,180.06,179.99,5.5553]
[1747192129200,63.5,180.07,179.99,5.5553]
[1747192129896,5.5538,180.05,180.0,5.5552]
[1747192130096,5.5538,180.05,180.01,68.0337]
[1747192130998,5.5533,180.07,180.01,68.0337]
[1747192131295,63.36,180.1,180.01,68.0337]
[1747192131698,64.46,180.12,180.01,68.0337]
[1747192131699,5.5537,180.06,180.01,68.0337]
[1747192131904,63.36,180.1,180.01,68.0337]
[1747192132096,63.36,180.1,180.02,1.757]
[1747192134303,364.0,180.14,180.02,1.757]
[1747192134503,63.26,180.13,180.02,1.757]
[1747192134904,5.553,180.08,180.03,5.5542]
[1747192135103,63.26,180.13,180.02,1.757]
[1747192135803,5.5531,180.07,180.02,7.3115]
[1747192136505,5.5528,180.08,180.03,5.5542]
[1747192137199,5.5524,180.1,180.04,5.554]
[1747192137504,63.02,180.13,180.04,5.554]
[1747192138106,364.0,180.14,180.04,5.554]
[1747192138306,427.08,180.14,180.04,5.554]
[1747192139008,5.5527,180.09,180.04,5.554]
[1747192139408,5.5527,180.09,180.04,68.554]
[1747192140602,426.92,180.14,180.04,63.0]
[1747192140820,364.0,180.14,180.04,63.0]
[1747192141005,5.5519,180.11,180.06,5.5531]
[1747192141207,5.5519,180.11,180.07,63.18]
[1747192141410,364.0,180.14,180.07,63.18]
[1747192143109,5.5516,180.12,180.07,63.18]
[1747192143308,364.0,180.14,180.07,68.81463646]
[1747192143513,160.52464698,180.18,180.07,68.81463646]
[1747192143742,5.5508,180.15,180.09,5.5524]
[1747192144045,5.5508,180.15,180.1,3.7399]
[1747192145229,5.551,180.14,180.1,3.7399]
[1747192145528,62.86,180.19,180.1,3.7399]
[1747192145824,5.5522,180.1,180.07,68.81463646]
[1747192146131,62.86,180.19,180.07,63.18]